[Event "Titled Tuesday Blitz November 08 Late 2022"]
[White "Martinez, Shawn"]
[Black "chess50years"]
[WhiteFideId "2039770"]
[WhiteElo "2174"]
[BlackElo "2111"]
[Result "0-1"]
[Round "05"]
[TimeControl "180+1"]
[Date "2022.11.09"]
[WhiteClock "0:00:16"]
[BlackClock "0:00:45"]

1. e4 {[%clk 0:02:53]}  c5 {[%clk 0:02:59]} 2. Nc3 {[%clk 0:02:51]}  Nc6 {[%clk 0:02:56]} 3. Bb5 {[%clk 0:02:46]}  g6 {[%clk 0:02:54]} 4. Bxc6 {[%clk 0:02:32]}  bxc6 {[%clk 0:02:54]} 5. f4 {[%clk 0:02:32]}  d6 {[%clk 0:02:52]} 6. d3 {[%clk 0:02:33]}  Bg7 {[%clk 0:02:51]} 7. Nf3 {[%clk 0:02:32]}  Nf6 {[%clk 0:02:44]} 8. O-O {[%clk 0:02:29]}  O-O {[%clk 0:02:43]} 9. Bd2 {[%clk 0:02:29]}  Bg4 {[%clk 0:02:42]} 10. Qe1 {[%clk 0:02:28]}  Bxf3 {[%clk 0:02:41]} 11. Rxf3 {[%clk 0:02:28]}  Rb8 {[%clk 0:02:36]} 12. Rb1 {[%clk 0:02:26]}  Nd7 {[%clk 0:02:35]} 13. b3 {[%clk 0:02:20]}  e6 {[%clk 0:02:26]} 14. g4 {[%clk 0:01:54]}  Qe7 {[%clk 0:02:18]} 15. Qg3 {[%clk 0:01:39]}  Rbe8 {[%clk 0:02:15]} 16. Rbf1 {[%clk 0:01:36]}  f5 {[%clk 0:02:07]} 17. h4 {[%clk 0:01:17]}  Bf6 {[%clk 0:01:53]} 18. g5 {[%clk 0:01:14]}  Bd4+ {[%clk 0:01:53]} 19. Kg2 {[%clk 0:01:13]}  e5 {[%clk 0:01:36]} 20. h5 {[%clk 0:00:54]}  exf4 {[%clk 0:01:34]} 21. Bxf4 {[%clk 0:00:31]}  Ne5 {[%clk 0:01:25]} 22. Ne2 {[%clk 0:00:22]}  Nxf3 {[%clk 0:01:22]} 23. Bxd6 {[%clk 0:00:18]}  Qe6 {[%clk 0:00:59]} 24. Bxf8 {[%clk 0:00:16]}  Rxf8 {[%clk 0:00:59]} 25. Rxf3 {[%clk 0:00:15]}  fxe4 {[%clk 0:00:55]} 26. Rxf8+ {[%clk 0:00:15]}  Kxf8 {[%clk 0:00:55]} 27. hxg6 {[%clk 0:00:14]}  hxg6 {[%clk 0:00:52]} 28. Nxd4 {[%clk 0:00:14]}  cxd4 {[%clk 0:00:50]} 29. dxe4 {[%clk 0:00:14]}  Qxe4+ {[%clk 0:00:49]} 30. Qf3+ {[%clk 0:00:15]}  Qxf3+ {[%clk 0:00:46]} 31. Kxf3 {[%clk 0:00:15]}  Ke7 {[%clk 0:00:45]} 32. Ke4 {[%clk 0:00:16]}  c5 {[%clk 0:00:44]} 33. b4 {[%clk 0:00:15]}  Kd6 {[%clk 0:00:43]} 34. bxc5+ {[%clk 0:00:14]}  Kxc5 {[%clk 0:00:43]} 35. Kd3 {[%clk 0:00:14]}  Kd5 {[%clk 0:00:43]} 36. a3 {[%clk 0:00:14]}  a6 {[%clk 0:00:42]} 37. a4 {[%clk 0:00:13]}  a5 {[%clk 0:00:42]} 38. c4+ {[%clk 0:00:12]}  dxc3 {[%clk 0:00:41]} 39. Kxc3 {[%clk 0:00:12]}  Kc5 {[%clk 0:00:42]} 40. Kb3 {[%clk 0:00:12]}  Kd4 {[%clk 0:00:41]} 41. Kb2 {[%clk 0:00:11]}  Kc4 {[%clk 0:00:41]} 42. Ka3 {[%clk 0:00:11]}  Kc3 {[%clk 0:00:41]} 43. Ka2 {[%clk 0:00:11]}  Kb4 {[%clk 0:00:41]} 44. Kb2 {[%clk 0:00:11]}  Kxa4 {[%clk 0:00:42]} 45. Ka2 {[%clk 0:00:12]}  Kb4 {[%clk 0:00:42]} 46. Kb2 {[%clk 0:00:12]}  Kc4 {[%clk 0:00:41]} 47. Ka3 {[%clk 0:00:13]}  Kd4 {[%clk 0:00:41]} 48. Ka4 {[%clk 0:00:13]}  Ke5 {[%clk 0:00:42]} 49. Kxa5 {[%clk 0:00:14]}  Kf5 {[%clk 0:00:43]} 50. Kb4 {[%clk 0:00:13]}  Kxg5 {[%clk 0:00:44]} 51. Kc3 {[%clk 0:00:14]}  Kf4 {[%clk 0:00:44]} 52. Kd2 {[%clk 0:00:14]}  Kf3 {[%clk 0:00:45]} 53. Ke1 {[%clk 0:00:15]}  g5 {[%clk 0:00:45]} 54. Kf1 {[%clk 0:00:15]}  g4 {[%clk 0:00:44]} 55. Kg1 {[%clk 0:00:15]}  Kg3 {[%clk 0:00:45]} 56. Kh1 {[%clk 0:00:15]}  Kf2 {[%clk 0:00:44]} 57. Kh2 {[%clk 0:00:15]}  g3+ {[%clk 0:00:44]} 58. Kh1 {[%clk 0:00:16]}  g2+ {[%clk 0:00:44]} 59. Kh2 {[%clk 0:00:17]}  g1=Q+ {[%clk 0:00:44]} 60. Kh3 {[%clk 0:00:17]}  Qg5 {[%clk 0:00:44]} 61. Kh2 {[%clk 0:00:16]}  Qg2# {[%clk 0:00:45]} 0-1


[Site "https://www.chess.com"]

[Event "Titled Tuesday Blitz November 08 Late 2022"]
[White "Mazurkiewicz, Michal"]
[Black "Guzman, Christopher"]
[WhiteFideId "1124943"]
[BlackFideId "6405096"]
[WhiteElo "2063"]
[BlackElo "2272"]
[Result "1-0"]
[Round "05"]
[TimeControl "180+1"]
[Date "2022.11.09"]
[WhiteClock "0:00:04"]
[BlackClock "0:01:26"]

1. e4 {[%clk 0:03:00]}  c6 {[%clk 0:03:00]} 2. d3 {[%clk 0:03:00]}  d5 {[%clk 0:03:01]} 3. Nd2 {[%clk 0:03:01]}  g6 {[%clk 0:03:00]} 4. Ngf3 {[%clk 0:03:01]}  Bg7 {[%clk 0:03:00]} 5. g3 {[%clk 0:03:02]}  Bg4 {[%clk 0:03:00]} 6. h3 {[%clk 0:03:02]}  Bxf3 {[%clk 0:03:00]} 7. Qxf3 {[%clk 0:03:02]}  dxe4 {[%clk 0:02:58]} 8. dxe4 {[%clk 0:03:02]}  Nf6 {[%clk 0:02:59]} 9. Bg2 {[%clk 0:03:02]}  O-O {[%clk 0:02:58]} 10. O-O {[%clk 0:03:02]}  Nbd7 {[%clk 0:02:59]} 11. Qe2 {[%clk 0:03:00]}  e5 {[%clk 0:02:58]} 12. Nc4 {[%clk 0:02:59]}  Qc7 {[%clk 0:02:58]} 13. b3 {[%clk 0:02:56]}  Rfd8 {[%clk 0:02:58]} 14. Ba3 {[%clk 0:02:54]}  Nb6 {[%clk 0:02:57]} 15. Rad1 {[%clk 0:02:47]}  Nxc4 {[%clk 0:02:55]} 16. Qxc4 {[%clk 0:02:46]}  h6 {[%clk 0:02:51]} 17. h4 {[%clk 0:02:46]}  b6 {[%clk 0:02:49]} 18. Bb2 {[%clk 0:02:27]}  h5 {[%clk 0:02:28]} 19. a4 {[%clk 0:02:24]}  Ng4 {[%clk 0:02:17]} 20. Bh3 {[%clk 0:02:20]}  Nf6 {[%clk 0:02:06]} 21. Qc3 {[%clk 0:01:03]}  Ne8 {[%clk 0:02:02]} 22. a5 {[%clk 0:00:29]}  Rd6 {[%clk 0:01:51]} 23. Rxd6 {[%clk 0:00:28]}  Qxd6 {[%clk 0:01:52]} 24. Qf3 {[%clk 0:00:18]}  Rd8 {[%clk 0:01:50]} 25. axb6 {[%clk 0:00:18]}  axb6 {[%clk 0:01:50]} 26. Qe3 {[%clk 0:00:18]}  c5 {[%clk 0:01:47]} 27. Ra1 {[%clk 0:00:18]}  Nc7 {[%clk 0:01:47]} 28. Ra7 {[%clk 0:00:18]}  Nb5 {[%clk 0:01:47]} 29. Rb7 {[%clk 0:00:15]}  Qc6 {[%clk 0:01:47]} 30. Re7 {[%clk 0:00:09]}  Kf8 {[%clk 0:01:40]} 31. Rxe5 {[%clk 0:00:06]}  Bxe5 {[%clk 0:01:39]} 32. Bxe5 {[%clk 0:00:07]}  Re8 {[%clk 0:01:37]} 33. Qh6+ {[%clk 0:00:07]}  Ke7 {[%clk 0:01:37]} 34. Qg7 {[%clk 0:00:04]}  Nd6 {[%clk 0:01:26]} 35. Bf6# {[%clk 0:00:04]} 1-0


[Site "https://www.chess.com"]

[Event "Titled Tuesday Blitz November 08 Late 2022"]
[White "Mendonca, Mateus Nakajo"]
[Black "Viana Da Costa, Fernando"]
[WhiteFideId "2110954"]
[BlackFideId "2111900"]
[WhiteElo "2310"]
[BlackElo "2259"]
[Result "1-0"]
[Round "05"]
[TimeControl "180+1"]
[Date "2022.11.09"]
[WhiteClock "0:00:50"]
[BlackClock "0:00:38"]

1. Nf3 {[%clk 0:03:00]}  Nf6 {[%clk 0:03:00]} 2. c4 {[%clk 0:03:00]}  e6 {[%clk 0:02:59]} 3. g3 {[%clk 0:03:01]}  d5 {[%clk 0:03:00]} 4. Bg2 {[%clk 0:03:01]}  Be7 {[%clk 0:03:00]} 5. O-O {[%clk 0:03:01]}  O-O {[%clk 0:03:00]} 6. d4 {[%clk 0:02:55]}  c6 {[%clk 0:02:55]} 7. Qc2 {[%clk 0:02:53]}  b6 {[%clk 0:02:54]} 8. Nbd2 {[%clk 0:02:48]}  Nbd7 {[%clk 0:02:51]} 9. Re1 {[%clk 0:02:43]}  Bb7 {[%clk 0:02:39]} 10. e4 {[%clk 0:02:41]}  Rc8 {[%clk 0:02:29]} 11. e5 {[%clk 0:02:35]}  Ne8 {[%clk 0:02:26]} 12. cxd5 {[%clk 0:02:30]}  cxd5 {[%clk 0:02:23]} 13. Qd3 {[%clk 0:02:27]}  Nc7 {[%clk 0:02:22]} 14. Nf1 {[%clk 0:02:14]}  Ba6 {[%clk 0:02:21]} 15. Qd1 {[%clk 0:02:09]}  Nb8 {[%clk 0:02:14]} 16. h4 {[%clk 0:02:03]}  Nc6 {[%clk 0:02:13]} 17. Bg5 {[%clk 0:01:54]}  h6 {[%clk 0:01:55]} 18. Bxe7 {[%clk 0:01:47]}  Qxe7 {[%clk 0:01:56]} 19. Ne3 {[%clk 0:01:38]}  b5 {[%clk 0:01:06]} 20. Bf1 {[%clk 0:01:27]}  b4 {[%clk 0:01:04]} 21. Bxa6 {[%clk 0:01:25]}  Nxa6 {[%clk 0:01:05]} 22. Qa4 {[%clk 0:01:20]}  Qb7 {[%clk 0:01:03]} 23. Rac1 {[%clk 0:01:13]}  Qb6 {[%clk 0:00:55]} 24. h5 {[%clk 0:00:55]}  Nc7 {[%clk 0:00:38]} 25. Rxc6 {[%clk 0:00:50]} 1-0


[Site "https://www.chess.com"]

[Event "Titled Tuesday Blitz November 08 Late 2022"]
[White "Mr_Penings"]
[Black "Holt, Conrad"]
[BlackFideId "2034387"]
[WhiteElo "2694"]
[BlackElo "2592"]
[Result "0-1"]
[Round "05"]
[TimeControl "180+1"]
[Date "2022.11.08"]
[WhiteClock "0:00:03"]
[BlackClock "0:00:10"]

1. c4 {[%clk 0:03:00]}  c6 {[%clk 0:02:53]} 2. Nf3 {[%clk 0:02:59]}  d5 {[%clk 0:02:53]} 3. e3 {[%clk 0:02:59]}  Nf6 {[%clk 0:02:51]} 4. Nc3 {[%clk 0:02:59]}  Nbd7 {[%clk 0:02:50]} 5. b3 {[%clk 0:02:50]}  e5 {[%clk 0:02:49]} 6. Bb2 {[%clk 0:02:47]}  a6 {[%clk 0:02:47]} 7. Be2 {[%clk 0:02:35]}  Bd6 {[%clk 0:02:46]} 8. Qc2 {[%clk 0:02:26]}  O-O {[%clk 0:02:41]} 9. Rg1 {[%clk 0:02:17]}  e4 {[%clk 0:02:21]} 10. Nd4 {[%clk 0:02:17]}  Bxh2 {[%clk 0:02:21]} 11. Rh1 {[%clk 0:02:15]}  Be5 {[%clk 0:02:20]} 12. Na4 {[%clk 0:02:07]}  c5 {[%clk 0:02:08]} 13. Nf5 {[%clk 0:01:56]}  dxc4 {[%clk 0:02:04]} 14. bxc4 {[%clk 0:01:48]}  Re8 {[%clk 0:02:01]} 15. Nc3 {[%clk 0:01:43]}  Nf8 {[%clk 0:01:43]} 16. g4 {[%clk 0:01:25]}  Ne6 {[%clk 0:01:42]} 17. O-O-O {[%clk 0:01:17]}  Bd7 {[%clk 0:01:27]} 18. f4 {[%clk 0:01:13]}  exf3 {[%clk 0:01:26]} 19. Bxf3 {[%clk 0:01:14]}  Ng5 {[%clk 0:01:26]} 20. Be2 {[%clk 0:01:02]}  Bc6 {[%clk 0:01:24]} 21. Rhf1 {[%clk 0:00:54]}  Nfe4 {[%clk 0:01:06]} 22. d4 {[%clk 0:00:50]}  cxd4 {[%clk 0:00:55]} 23. exd4 {[%clk 0:00:50]}  Bf6 {[%clk 0:00:54]} 24. d5 {[%clk 0:00:43]}  Bd7 {[%clk 0:00:51]} 25. Bd3 {[%clk 0:00:39]}  Bxf5 {[%clk 0:00:46]} 26. Rxf5 {[%clk 0:00:36]}  Bxc3 {[%clk 0:00:43]} 27. Bxc3 {[%clk 0:00:36]}  Nxc3 {[%clk 0:00:43]} 28. Qxc3 {[%clk 0:00:37]}  Rc8 {[%clk 0:00:31]} 29. d6 {[%clk 0:00:29]}  g6 {[%clk 0:00:12]} 30. Rd5 {[%clk 0:00:22]}  Rc6 {[%clk 0:00:11]} 31. d7 {[%clk 0:00:20]}  Re3 {[%clk 0:00:09]} 32. Qd4 {[%clk 0:00:18]}  Rh3 {[%clk 0:00:08]} 33. Re1 {[%clk 0:00:18]}  Ne6 {[%clk 0:00:07]} 34. Qe5 {[%clk 0:00:16]}  Rc7 {[%clk 0:00:04]} 35. Qd6 {[%clk 0:00:12]}  Kg7 {[%clk 0:00:04]} 36. Kd2 {[%clk 0:00:10]}  Rc6 {[%clk 0:00:03]} 37. Qe5+ {[%clk 0:00:10]}  Kg8 {[%clk 0:00:03]} 38. Rf1 {[%clk 0:00:10]}  h6 {[%clk 0:00:02]} 39. Qe4 {[%clk 0:00:09]}  Rc7 {[%clk 0:00:01]} 40. Rxf7 {[%clk 0:00:08]}  Kxf7 {[%clk 0:00:01]} 41. Qxg6+ {[%clk 0:00:08]}  Ke7 {[%clk 0:00:02]} 42. Re5 {[%clk 0:00:08]}  Qxd7 {[%clk 0:00:02]} 43. Qh7+ {[%clk 0:00:07]}  Kd8 {[%clk 0:00:02]} 44. Qg8+ {[%clk 0:00:07]}  Qe8 {[%clk 0:00:02]} 45. Qxe8+ {[%clk 0:00:06]}  Kxe8 {[%clk 0:00:03]} 46. Rxe6+ {[%clk 0:00:07]}  Re7 {[%clk 0:00:03]} 47. Bg6+ {[%clk 0:00:06]}  Kf8 {[%clk 0:00:03]} 48. Rf6+ {[%clk 0:00:06]}  Kg7 {[%clk 0:00:03]} 49. Rb6 {[%clk 0:00:07]}  Rh2+ {[%clk 0:00:04]} 50. Kc3 {[%clk 0:00:07]}  Rxa2 {[%clk 0:00:05]} 51. Bf5 {[%clk 0:00:07]}  Ra3+ {[%clk 0:00:05]} 52. Kb4 {[%clk 0:00:07]}  Rae3 {[%clk 0:00:05]} 53. Rg6+ {[%clk 0:00:07]}  Kf7 {[%clk 0:00:06]} 54. Rxh6 {[%clk 0:00:08]}  R3e5 {[%clk 0:00:07]} 55. Rh7+ {[%clk 0:00:07]}  Kf6 {[%clk 0:00:07]} 56. Rh6+ {[%clk 0:00:08]}  Kg5 {[%clk 0:00:07]} 57. Rg6+ {[%clk 0:00:08]}  Kf4 {[%clk 0:00:08]} 58. Rg8 {[%clk 0:00:07]}  a5+ {[%clk 0:00:08]} 59. Ka4 {[%clk 0:00:06]}  Rc7 {[%clk 0:00:09]} 60. Kb3 {[%clk 0:00:05]}  b5 {[%clk 0:00:09]} 61. cxb5 {[%clk 0:00:05]}  Rxb5+ {[%clk 0:00:10]} 62. Ka4 {[%clk 0:00:05]}  Re5 {[%clk 0:00:10]} 63. Rf8 {[%clk 0:00:06]}  Rc4+ {[%clk 0:00:10]} 64. Kb3 {[%clk 0:00:06]}  Rb4+ {[%clk 0:00:10]} 65. Kc3 {[%clk 0:00:05]}  Kg5 {[%clk 0:00:10]} 66. Rg8+ {[%clk 0:00:04]}  Kf6 {[%clk 0:00:11]} 67. Rf8+ {[%clk 0:00:04]}  Kg7 {[%clk 0:00:10]} 68. Rc8 {[%clk 0:00:04]}  Re3+ {[%clk 0:00:10]} 69. Kd2 {[%clk 0:00:05]}  Ra3 {[%clk 0:00:10]} 70. Rc7+ {[%clk 0:00:03]}  Kf6 {[%clk 0:00:10]} 71. Rc6+ {[%clk 0:00:03]}  Kg5 {[%clk 0:00:11]} 72. Rc2 {[%clk 0:00:03]}  Rf4 {[%clk 0:00:10]} 73. Rc5 {[%clk 0:00:03]}  Rf2+ {[%clk 0:00:10]} 74. Ke1 {[%clk 0:00:03]}  Rh2 {[%clk 0:00:10]} 0-1


[Site "https://www.chess.com"]

[Event "Titled Tuesday Blitz November 08 Late 2022"]
[White "Musovic, Armin"]
[Black "Harvey, Marcus R"]
[WhiteFideId "939935"]
[BlackFideId "400092"]
[WhiteElo "2288"]
[BlackElo "2457"]
[Result "0-1"]
[Round "05"]
[TimeControl "180+1"]
[Date "2022.11.09"]
[WhiteClock "0:00:15"]
[BlackClock "0:00:15"]

1. a3 {[%clk 0:03:00]}  d5 {[%clk 0:02:49]} 2. d4 {[%clk 0:03:00]}  Nf6 {[%clk 0:02:48]} 3. Nf3 {[%clk 0:03:00]}  Bf5 {[%clk 0:02:48]} 4. c4 {[%clk 0:02:59]}  c6 {[%clk 0:02:47]} 5. Nc3 {[%clk 0:03:00]}  e6 {[%clk 0:02:47]} 6. g3 {[%clk 0:03:00]}  h6 {[%clk 0:02:46]} 7. Bg2 {[%clk 0:03:00]}  dxc4 {[%clk 0:02:45]} 8. O-O {[%clk 0:02:59]}  Nbd7 {[%clk 0:02:43]} 9. a4 {[%clk 0:02:54]}  a5 {[%clk 0:02:37]} 10. Nd2 {[%clk 0:02:50]}  Nb6 {[%clk 0:02:36]} 11. e4 {[%clk 0:02:46]}  Bh7 {[%clk 0:02:36]} 12. Ndb1 {[%clk 0:02:36]}  Bb4 {[%clk 0:02:25]} 13. f3 {[%clk 0:02:34]}  O-O {[%clk 0:02:23]} 14. Be3 {[%clk 0:02:34]}  c5 {[%clk 0:02:19]} 15. dxc5 {[%clk 0:02:29]}  Nbd7 {[%clk 0:02:15]} 16. Na3 {[%clk 0:02:28]}  Nxc5 {[%clk 0:02:04]} 17. Nxc4 {[%clk 0:02:22]}  Qxd1 {[%clk 0:01:51]} 18. Rfxd1 {[%clk 0:02:23]}  Nb3 {[%clk 0:01:51]} 19. Rab1 {[%clk 0:02:19]}  Rfd8 {[%clk 0:01:50]} 20. Nb6 {[%clk 0:02:17]}  Rxd1+ {[%clk 0:01:45]} 21. Rxd1 {[%clk 0:02:18]}  Rb8 {[%clk 0:01:41]} 22. Kf1 {[%clk 0:02:11]}  g5 {[%clk 0:01:41]} 23. g4 {[%clk 0:02:10]}  Bc5 {[%clk 0:01:36]} 24. Bxc5 {[%clk 0:02:08]}  Nxc5 {[%clk 0:01:37]} 25. Nb5 {[%clk 0:02:04]}  Kg7 {[%clk 0:01:23]} 26. Ke2 {[%clk 0:01:59]}  h5 {[%clk 0:01:22]} 27. h3 {[%clk 0:01:59]}  h4 {[%clk 0:01:20]} 28. Ke3 {[%clk 0:01:55]}  e5 {[%clk 0:01:17]} 29. Rd6 {[%clk 0:01:50]}  Ne6 {[%clk 0:01:15]} 30. Nc4 {[%clk 0:01:41]}  Rc8 {[%clk 0:01:04]} 31. Nxe5 {[%clk 0:01:41]}  Nf4 {[%clk 0:01:04]} 32. Rd2 {[%clk 0:01:38]}  Rc1 {[%clk 0:00:57]} 33. Nd3 {[%clk 0:01:36]}  Nxd3 {[%clk 0:00:44]} 34. Kxd3 {[%clk 0:01:35]}  Nd7 {[%clk 0:00:42]} 35. Rc2 {[%clk 0:01:21]}  Nc5+ {[%clk 0:00:42]} 36. Kd2 {[%clk 0:01:18]}  Nb3+ {[%clk 0:00:41]} 37. Kc3 {[%clk 0:01:18]}  Rxc2+ {[%clk 0:00:38]} 38. Kxc2 {[%clk 0:01:19]}  Nc5 {[%clk 0:00:36]} 39. b3 {[%clk 0:01:14]}  Kf6 {[%clk 0:00:36]} 40. Nd6 {[%clk 0:01:10]}  Ke5 {[%clk 0:00:34]} 41. Nc4+ {[%clk 0:01:00]}  Kf4 {[%clk 0:00:34]} 42. Nxa5 {[%clk 0:01:01]}  Kg3 {[%clk 0:00:33]} 43. Bf1 {[%clk 0:01:01]}  Kf2 {[%clk 0:00:32]} 44. Bb5 {[%clk 0:00:51]}  Kg2 {[%clk 0:00:31]} 45. b4 {[%clk 0:00:51]}  Ne6 {[%clk 0:00:30]} 46. Nxb7 {[%clk 0:00:50]}  Kxh3 {[%clk 0:00:30]} 47. Bf1+ {[%clk 0:00:46]}  Kg3 {[%clk 0:00:29]} 48. a5 {[%clk 0:00:47]}  Kf2 {[%clk 0:00:27]} 49. Bh3 {[%clk 0:00:43]}  Kxf3 {[%clk 0:00:26]} 50. Nd6 {[%clk 0:00:39]}  Kg3 {[%clk 0:00:23]} 51. b5 {[%clk 0:00:32]}  Kxh3 {[%clk 0:00:22]} 52. b6 {[%clk 0:00:32]}  Nc5 {[%clk 0:00:20]} 53. Kc3 {[%clk 0:00:30]}  Kg3 {[%clk 0:00:18]} 54. Kd4 {[%clk 0:00:28]}  Nb3+ {[%clk 0:00:16]} 55. Ke3 {[%clk 0:00:26]}  Nxa5 {[%clk 0:00:17]} 56. Kd3 {[%clk 0:00:14]}  h3 {[%clk 0:00:16]} 57. Nc4 {[%clk 0:00:15]}  Nxc4 {[%clk 0:00:15]} 58. b7 {[%clk 0:00:15]}  Ne5+ {[%clk 0:00:15]} 59. Kd4 {[%clk 0:00:14]}  Nd7 {[%clk 0:00:15]} 60. Kd5 {[%clk 0:00:14]}  h2 {[%clk 0:00:15]} 61. Kd6 {[%clk 0:00:14]}  Nb8 {[%clk 0:00:15]} 62. Kc7 {[%clk 0:00:15]}  h1=Q {[%clk 0:00:15]} 63. Kd8 {[%clk 0:00:15]} 0-1


[Site "https://www.chess.com"]

[Event "Titled Tuesday Blitz November 08 Late 2022"]
[White "Oglaza, Oskar"]
[Black "Souleidis, Georgios"]
[WhiteFideId "1194402"]
[BlackFideId "4206827"]
[WhiteElo "2204"]
[BlackElo "2401"]
[Result "1-0"]
[Round "05"]
[TimeControl "180+1"]
[Date "2022.11.09"]
[WhiteClock "0:00:12"]
[BlackClock "0:00:04"]

1. e4 {[%clk 0:02:55]}  c5 {[%clk 0:02:57]} 2. Nf3 {[%clk 0:02:55]}  e6 {[%clk 0:02:57]} 3. d4 {[%clk 0:02:55]}  cxd4 {[%clk 0:02:58]} 4. Nxd4 {[%clk 0:02:56]}  Nf6 {[%clk 0:02:58]} 5. Bd3 {[%clk 0:02:50]}  d5 {[%clk 0:02:48]} 6. exd5 {[%clk 0:02:20]}  Nxd5 {[%clk 0:02:41]} 7. O-O {[%clk 0:02:18]}  Be7 {[%clk 0:02:41]} 8. a3 {[%clk 0:02:08]}  O-O {[%clk 0:02:40]} 9. c4 {[%clk 0:02:08]}  Nf6 {[%clk 0:02:35]} 10. Nc3 {[%clk 0:02:07]}  Nbd7 {[%clk 0:02:25]} 11. Bc2 {[%clk 0:01:46]}  Ne5 {[%clk 0:02:19]} 12. b3 {[%clk 0:01:46]}  Bd7 {[%clk 0:02:16]} 13. h3 {[%clk 0:01:42]}  a6 {[%clk 0:02:08]} 14. Re1 {[%clk 0:01:41]}  Nc6 {[%clk 0:02:08]} 15. Be3 {[%clk 0:01:39]}  Qc7 {[%clk 0:01:59]} 16. Qf3 {[%clk 0:01:36]}  Nxd4 {[%clk 0:01:48]} 17. Bxd4 {[%clk 0:01:37]}  Bc6 {[%clk 0:01:49]} 18. Qe3 {[%clk 0:01:36]}  Rfe8 {[%clk 0:01:35]} 19. Be5 {[%clk 0:01:18]}  Qc8 {[%clk 0:01:32]} 20. Qg5 {[%clk 0:01:05]}  h6 {[%clk 0:01:19]} 21. Qg3 {[%clk 0:01:05]}  Rd8 {[%clk 0:00:58]} 22. Ne4 {[%clk 0:01:00]}  Ne8 {[%clk 0:00:32]} 23. f4 {[%clk 0:00:38]}  f6 {[%clk 0:00:30]} 24. Bc3 {[%clk 0:00:38]}  f5 {[%clk 0:00:23]} 25. Nf2 {[%clk 0:00:37]}  Bf6 {[%clk 0:00:22]} 26. Rad1 {[%clk 0:00:29]}  Bxc3 {[%clk 0:00:20]} 27. Qxc3 {[%clk 0:00:29]}  Rxd1 {[%clk 0:00:20]} 28. Nxd1 {[%clk 0:00:29]}  Nf6 {[%clk 0:00:21]} 29. Qe5 {[%clk 0:00:29]}  Ne4 {[%clk 0:00:16]} 30. Nf2 {[%clk 0:00:29]}  Nxf2 {[%clk 0:00:11]} 31. Kxf2 {[%clk 0:00:29]}  Kf7 {[%clk 0:00:08]} 32. g4 {[%clk 0:00:30]}  g6 {[%clk 0:00:06]} 33. gxf5 {[%clk 0:00:30]}  gxf5 {[%clk 0:00:07]} 34. Rg1 {[%clk 0:00:29]}  Qf8 {[%clk 0:00:06]} 35. Qc7+ {[%clk 0:00:30]}  Ke8 {[%clk 0:00:05]} 36. Rg6 {[%clk 0:00:28]}  Qf7 {[%clk 0:00:04]} 37. Qxf7+ {[%clk 0:00:20]}  Kxf7 {[%clk 0:00:04]} 38. Rxh6 {[%clk 0:00:20]}  Rd8 {[%clk 0:00:05]} 39. Ke3 {[%clk 0:00:17]}  Kg7 {[%clk 0:00:06]} 40. Rh5 {[%clk 0:00:17]}  Kf6 {[%clk 0:00:06]} 41. Rg5 {[%clk 0:00:16]}  Rh8 {[%clk 0:00:07]} 42. Rg3 {[%clk 0:00:16]}  Rh4 {[%clk 0:00:07]} 43. b4 {[%clk 0:00:16]}  e5 {[%clk 0:00:06]} 44. fxe5+ {[%clk 0:00:13]}  Kxe5 {[%clk 0:00:07]} 45. Kd3 {[%clk 0:00:11]}  f4 {[%clk 0:00:06]} 46. Rg5+ {[%clk 0:00:11]}  Kf6 {[%clk 0:00:06]} 47. Rg8 {[%clk 0:00:12]}  Rxh3+ {[%clk 0:00:06]} 48. Kd4 {[%clk 0:00:12]}  Kf7 {[%clk 0:00:06]} 49. Rg4 {[%clk 0:00:11]}  f3 {[%clk 0:00:05]} 50. Rf4+ {[%clk 0:00:12]}  Ke7 {[%clk 0:00:06]} 51. Be4 {[%clk 0:00:13]}  Bxe4 {[%clk 0:00:05]} 52. Kxe4 {[%clk 0:00:13]}  f2 {[%clk 0:00:06]} 53. Rxf2 {[%clk 0:00:13]}  Rxa3 {[%clk 0:00:07]} 54. Kd5 {[%clk 0:00:14]}  Rd3+ {[%clk 0:00:05]} 55. Kc5 {[%clk 0:00:14]}  Rc3 {[%clk 0:00:05]} 56. Rf4 {[%clk 0:00:12]}  Kd7 {[%clk 0:00:05]} 57. Kb6 {[%clk 0:00:13]}  Rb3 {[%clk 0:00:04]} 58. c5 {[%clk 0:00:11]}  a5 {[%clk 0:00:03]} 59. Kxa5 {[%clk 0:00:11]}  Kc6 {[%clk 0:00:03]} 60. Rf6+ {[%clk 0:00:11]}  Kc7 {[%clk 0:00:04]} 61. Kb5 {[%clk 0:00:11]}  Rb1 {[%clk 0:00:04]} 62. Rf7+ {[%clk 0:00:11]}  Kb8 {[%clk 0:00:04]} 63. Ka5 {[%clk 0:00:11]}  Ka7 {[%clk 0:00:04]} 64. c6 {[%clk 0:00:10]}  Ra1+ {[%clk 0:00:04]} 65. Kb5 {[%clk 0:00:10]}  Rc1 {[%clk 0:00:04]} 66. Rxb7+ {[%clk 0:00:11]}  Ka8 {[%clk 0:00:04]} 67. Rh7 {[%clk 0:00:11]}  Kb8 {[%clk 0:00:04]} 68. Kb6 {[%clk 0:00:12]}  Kc8 {[%clk 0:00:04]} 69. Rh8# {[%clk 0:00:12]} 1-0


[Site "https://www.chess.com"]

[Event "Titled Tuesday Blitz November 08 Late 2022"]
[White "Pakleza, Zbigniew"]
[Black "Sourath Biswas"]
[WhiteFideId "1119290"]
[BlackFideId "35091484"]
[WhiteElo "2411"]
[BlackElo "2164"]
[Result "1-0"]
[Round "05"]
[TimeControl "180+1"]
[Date "2022.11.09"]
[WhiteClock "0:00:12"]
[BlackClock "0:00:01"]

1. d4 {[%clk 0:03:00]}  Nf6 {[%clk 0:02:57]} 2. Nf3 {[%clk 0:03:00]}  g6 {[%clk 0:02:58]} 3. Bf4 {[%clk 0:02:59]}  Bg7 {[%clk 0:02:58]} 4. e3 {[%clk 0:02:56]}  O-O {[%clk 0:02:59]} 5. Be2 {[%clk 0:02:56]}  d6 {[%clk 0:03:00]} 6. h3 {[%clk 0:02:56]}  c5 {[%clk 0:02:57]} 7. c3 {[%clk 0:02:56]}  b6 {[%clk 0:02:57]} 8. Nbd2 {[%clk 0:02:56]}  Bb7 {[%clk 0:02:57]} 9. a4 {[%clk 0:02:56]}  a6 {[%clk 0:02:56]} 10. O-O {[%clk 0:02:56]}  Nbd7 {[%clk 0:02:57]} 11. Bh2 {[%clk 0:02:53]}  Ne4 {[%clk 0:02:47]} 12. Nxe4 {[%clk 0:02:44]}  Bxe4 {[%clk 0:02:47]} 13. Nd2 {[%clk 0:02:45]}  Bb7 {[%clk 0:02:45]} 14. Qb3 {[%clk 0:02:38]}  Qc7 {[%clk 0:02:40]} 15. Rfd1 {[%clk 0:02:36]}  Rab8 {[%clk 0:02:35]} 16. Bg3 {[%clk 0:02:34]}  Nf6 {[%clk 0:02:33]} 17. Qa3 {[%clk 0:02:26]}  Ne4 {[%clk 0:02:30]} 18. Nxe4 {[%clk 0:02:24]}  Bxe4 {[%clk 0:02:31]} 19. Bxa6 {[%clk 0:02:22]}  c4 {[%clk 0:02:22]} 20. Qb4 {[%clk 0:02:10]}  Bc2 {[%clk 0:01:49]} 21. Bxc4 {[%clk 0:01:42]}  Bxd1 {[%clk 0:01:49]} 22. Rxd1 {[%clk 0:01:43]}  Qa7 {[%clk 0:01:46]} 23. Bb5 {[%clk 0:01:37]}  Rfc8 {[%clk 0:01:41]} 24. Qa3 {[%clk 0:01:31]}  Ra8 {[%clk 0:01:32]} 25. c4 {[%clk 0:01:28]}  Qb7 {[%clk 0:01:00]} 26. Qd3 {[%clk 0:01:24]}  d5 {[%clk 0:00:53]} 27. b3 {[%clk 0:01:17]}  e6 {[%clk 0:00:48]} 28. Kh2 {[%clk 0:01:08]}  h5 {[%clk 0:00:46]} 29. Re1 {[%clk 0:00:57]}  Qe7 {[%clk 0:00:35]} 30. Kh1 {[%clk 0:00:47]}  h4 {[%clk 0:00:31]} 31. Bh2 {[%clk 0:00:47]}  Qb4 {[%clk 0:00:28]} 32. Rd1 {[%clk 0:00:44]}  Rd8 {[%clk 0:00:18]} 33. Bc7 {[%clk 0:00:37]}  Rdc8 {[%clk 0:00:16]} 34. Bxb6 {[%clk 0:00:34]}  dxc4 {[%clk 0:00:16]} 35. bxc4 {[%clk 0:00:34]}  e5 {[%clk 0:00:06]} 36. Rb1 {[%clk 0:00:27]}  Qd6 {[%clk 0:00:04]} 37. c5 {[%clk 0:00:25]}  Qd5 {[%clk 0:00:04]} 38. Bc4 {[%clk 0:00:21]}  Qc6 {[%clk 0:00:05]} 39. a5 {[%clk 0:00:20]}  exd4 {[%clk 0:00:05]} 40. exd4 {[%clk 0:00:20]}  Qf6 {[%clk 0:00:04]} 41. d5 {[%clk 0:00:14]}  Qxf2 {[%clk 0:00:03]} 42. d6 {[%clk 0:00:12]}  Be5 {[%clk 0:00:03]} 43. Rf1 {[%clk 0:00:13]}  Qb2 {[%clk 0:00:02]} 44. Qxg6+ {[%clk 0:00:11]}  Kh8 {[%clk 0:00:02]} 45. Qh6+ {[%clk 0:00:11]}  Kg8 {[%clk 0:00:01]} 46. Bxf7# {[%clk 0:00:12]} 1-0


[Site "https://www.chess.com"]